Cogmind - Beta 13 @@@ ROGUE MODE // 2024.04.12 @ 21:05:30 Player: chexo4 Result: Self-destructed Performance ------------- Evolutions (1) 500 Regions Visited (3) 600 Robots Destroyed (21) 105 Value Destroyed (515) 515 Prototype IDs (0) 0 Alien Tech Used (0) 0 Bonus (60) 60 TOTAL SCORE: 1780 Bonus ------- Follower Combat Kills 60 Cogmind --------- Core Integrity 236/400 Matter 287/300 Energy 125/125 System Corruption 0% Temperature Cool (0) Movement Walking (120) Location -9/Materials Parts ------- > --- POWER (1) -------- Light Ion Engine > --- PROPULSION (4) --- Aluminum Leg Aluminum Leg > --- UTILITY (2) ------ Small Storage Unit > --- WEAPON (2) ------- Light Assault Rifle > --- INVENTORY (8) ---- Seismic Detector Medium Laser Mining Laser Peak State ------------ > --- POWER ------------ Light Ion Engine > --- PROPULSION ------- Wheel Wheel > --- UTILITY ---------- Small Storage Unit Seismic Detector > --- WEAPON ----------- EM Pulse Gun Beam Rifle > --- INVENTORY -------- Light Ion Engine High-capacity Battery Seismic Detector Medium Laser Light Assault Rifle Mining Laser [Rating: 8] Favorites ----------- Power Light Ion Engine Engine Light Ion Engine Propulsion Wheel Leg Aluminum Leg Wheel Wheel Hover Unit Hover Unit Utility Small Storage Unit Device Seismic Detector Storage Small Storage Unit Weapon Light Assault Rifle Energy Gun Medium Laser Energy Cannon Beam Cannon Ballistic Gun Light Assault Rifle Launcher Grenade Launcher Special Weapon Mining Laser Build | -11 -10 -10 -9 ------- Run | Yrd Mat Min Mat Slots Evolved 2 | . . . 2 Power . | . . . . Propulsion 2 | . . . 2 Utility . | . . . . Weapon . | . . . . Parts Attached 31 | 8 14 . 9 Power 3 | 1 . . 2 Engine 3 | 1 . . 2 Core . | . . . . Reactor . | . . . . Propulsion 11 | 2 5 . 4 Treads . | . . . . Leg 2 | . . . 2 Wheel 5 | 2 2 . 1 Hover 4 | . 3 . 1 Flight . | . . . . Utility 2 | 2 . . . Device 1 | 1 . . . Storage 1 | 1 . . . Processor . | . . . . Hackware . | . . . . Protection . | . . . . Artifact . | . . . . Weapon 15 | 3 9 . 3 Energy Gun 6 | 2 2 . 2 Energy Cannon 1 | . 1 . . Ballistic Gun 5 | 1 3 . 1 Ballistic Cannon . | . . . . Launcher 2 | . 2 . . Special Weapon 1 | . 1 . . Impact Weapon . | . . . . Slashing Weapon . | . . . . Piercing Weapon . | . . . . Special Melee Weapon . | . . . . Unidentified Prototypes . | . . . . Parts Lost 14 | . 4 2 8 Power 2 | . . 1 1 Propulsion 6 | . 2 . 4 Utility 1 | . . . 1 Weapon 5 | . 2 1 2 Highest Loss Streak 4 | . 4 2 4 To Critical Strikes . | . . . . Average Slot Usage (%) 89 | . 99 99 54 Engine 12 | . 14 13 8 Wheel 20 | . 21 28 7 Hover 3 | . 6 . . Device 12 | . 14 14 8 Storage 13 | . 14 14 11 Energy Gun 4 | . 6 . 8 Energy Cannon 7 | . 6 13 . Ballistic Gun 11 | . 12 14 6 Naked Turns . | . . . . Heaviest Build 14 | 12 14 13 14 Greatest Support 36 | 26 26 26 36 Greatest Overweight (x) 4 | . 1 . 4 Average Overweight (x) . | . . . 1 Largest Inventory Capacity 8 | 8 8 8 8 Average Capacity 7 | 7 8 8 8 Most Carried 8 | 6 8 8 7 Average Carried 6 | 3 6 8 4 Final Capacity 8 | 8 8 8 8 Final Carried 8 | 6 8 8 3 Class Distribution -------------------- 92% | Mutant 7% | Scavenger-Mutant Dominant Class ---------------- Mutant | -10/Materials Mutant | -10/Mines Mutant | -9/Materials Resources | -11 -10 -10 -9 ----------- Run | Yrd Mat Min Mat Matter Collected 541 | 272 142 61 66 Remotely . | . . . . Salvage Created 811 | 146 218 70 377 Parts 49 | 9 26 2 12 Haulers Intercepted . | . . . . Recyclers Shooed 3 | . 1 . 2 Parts Field Recycled . | . . . . Retrieved Matter . | . . . . Parts Self-Destructed . | . . . . Prevented . | . . . . Kills | -11 -10 -10 -9 ------- Run | Yrd Mat Min Mat Combat Hostiles Destroyed 17 | . 7 5 5 Guns 6 | . 1 . 5 Cannons 10 | . 5 5 . AOE 1 | . 1 . . Classes Destroyed 8 | 2 4 1 1 Tunneler 2 | 2 . . . Recycler 3 | 1 . . 2 Operator 1 | . 1 . . Watcher 1 | . 1 . . Swarmer 5 | . 3 2 . Grunt 7 | . 4 . 3 Sentry 2 | . . . 2 Assembled 3 | . . 3 . Best Kill Streak 3 | 1 3 2 3 Combat Bots Only 3 | . 3 2 2 Max Kills in Single Turn 2 | 1 1 1 2 Gunslinging . | . . . . Exploded 1 | . 1 . . Melee . | . . . . Uniques/NPCs Destroyed . | . . . . Combat | -11 -10 -10 -9 -------- Run | Yrd Mat Min Mat Hostile Shots Fired 93 | . 22 24 47 Missed 27 | . 7 10 10 Damage Taken 1093 | . 332 241 520 Core 295 | . 76 55 164 Absorbed by Shields . | . . . . Core Remaining (%) 73 | 100 . 47 . Volleys Fired 82 | 11 22 12 37 Largest 2 | 2 2 2 2 Hottest 100 | 70 100 80 96 Shots Fired 137 | 22 35 24 56 Gun 109 | 22 19 12 56 Cannon 21 | . 9 12 . Launcher 4 | . 4 . . Special 3 | . 3 . . Kinetic 59 | 11 12 12 24 Thermal 63 | 11 19 12 21 Explosive 4 | . 4 . . Electromagnetic 11 | . . . 11 Robot Hit Streak 20 | 9 12 9 20 Robot Miss Streak 4 | 1 2 1 4 Penetration Max . | . . . . Secondary Targets . | . . . . Shots Hit Robots 87 | 15 17 15 40 Core Hits 40 | 5 13 9 13 Critical Kills . | . . . . Critical Parts Destroyed . | . . . . Critical Strikes 1 | . . . 1 Burn 1 | . . . 1 Melee Attacks . | . . . . Impact . | . . . . Slashing . | . . . . Piercing . | . . . . Sneak Attacks . | . . . . Combat Hostiles . | . . . . Follow-up Attacks . | . . . . Damage Inflicted 1194 | 157 257 244 536 Guns 760 | 157 113 53 437 Cannons 296 | . 105 191 . Explosions 138 | . 39 . 99 Melee . | . . . . Ramming . | . . . . Kinetic 272 | 56 25 53 138 Thermal 774 | 101 193 191 289 Explosive 39 | . 39 . . Electromagnetic 109 | . . . 109 Impact . | . . . . Slashing . | . . . . Piercing . | . . . . Highest Corruption . | . . . . Average Corruption . | . . . . Corruption Purged . | . . . . Corruption Blocked . | . . . . Overload Shots . | . . . . Overflow Damage 159 | . 144 . 15 Projectiles . | . . . . Explosions 159 | . 144 . 15 Melee . | . . . . Knockbacks . | . . . . Impact . | . . . . Kinetic . | . . . . Secondary . | . . . . Self-Inflicted Damage 236 | . 200 . 36 Shots 4 | . 3 . 1 Rammed . | . . . . Targets Rammed . | . . . . Kicked . | . . . . Crushed . | . . . . Highest Temperature 292 | 80 100 120 292 Average Temperature 65 | 36 37 51 109 Received Heat Transfer 246 | . 18 27 201 Effects 2 | . . . 2 Interference 2 | . . . 2 Siege Activations . | . . . . Robots Corrupted . | . . . . Combat Hostiles . | . . . . Parts Fried 1 | . . . 1 Impact Corruptions . | . . . . Robots Melted . | . . . . Combat Hostiles . | . . . . Parts Melted 3 | . . 1 2 Heat Transferred 1839 | 296 481 407 655 Parts Sabotaged . | . . . . Parts Stolen . | . . . . Parts Stripped . | . . . . Power Chain Reactions 1 | . . . 1 Alert | -11 -10 -10 -9 ------- Run | Yrd Mat Min Mat Peak Influence 232 | 15 232 151 132 Initial 46 | . 9 46 . Average 84 | 5 88 109 71 Maximum Alert Level 1 | . 1 . . Low Security (%) 97 | 100 93 100 100 Level 1 2 | . 6 . . Level 2 . | . . . . Level 3 . | . . . . Level 4 . | . . . . Level 5 . | . . . . High Security . | . . . . Max Security . | . . . . Squads Dispatched 3 | . 1 1 1 Investigation 1 | . 1 . . Extermination . | . . . . Reinforcement 1 | . . . 1 Assault 1 | . . 1 . Garrison . | . . . . Intercept . | . . . . Searches Triggered . | . . . . Construction Impeded . | . . . . Haulers Reinforced . | . . . . Active Scanning Responses . | . . . . Cargo Convoy Interrupts . | . . . . Stealth | -11 -10 -10 -9 --------- Run | Yrd Mat Min Mat Distress Signals 2 | . . . 2 Communications Jammed . | . . . . Distress Signals . | . . . . Times Spotted 42 | . 11 18 13 Peak Tracking Total 6 | . 3 6 4 Tactical Retreats 2 | . . 2 . Traps | -11 -10 -10 -9 ------- Run | Yrd Mat Min Mat Traps Triggered . | . . . . Indirectly . | . . . . Trap Hack Attempts . | . . . . Triggered . | . . . . Disarmed . | . . . . Reprogrammed . | . . . . Reused . | . . . . Traps Extracted . | . . . . Installed . | . . . . Triggered . | . . . . Machines | -11 -10 -10 -9 ---------- Run | Yrd Mat Min Mat Machines Disabled 6 | . 3 1 2 Max in Single Turn 3 | . 3 . 2 Machines Repaired . | . . . . Machines Dismantled . | . . . . Machines Sabotaged . | . . . . Overloaded Fab Kills . | . . . . Hacking | -11 -10 -10 -9 --------- Run | Yrd Mat Min Mat Machines Accessed 8 | . 6 . 2 Terminals 8 | . 6 . 2 Fabricators . | . . . . Repair Stations . | . . . . Recycling Units . | . . . . Scanalyzers . | . . . . Garrison Access . | . . . . Total Hacks 15 | . 11 . 4 Successful 4 | . 2 . 2 Failed 11 | . 9 . 2 Catastrophic 4 | . 3 . 1 Database Lockouts . | . . . . Manual 15 | . 11 . 4 Terminals 15 | . 11 . 4 Fabricators . | . . . . Repair Stations . | . . . . Recycling Units . | . . . . Scanalyzers . | . . . . Garrison Access . | . . . . Terminal Hacks 4 | . 2 . 2 Branch Access Points 2 | . 1 . 1 Terminal Index 2 | . 1 . 1 Fabricator Hacks . | . . . . Repair Station Hacks . | . . . . Recycling Unit Hacks . | . . . . Scanalyzer . | . . . . Garrison Access Hacks . | . . . . Unauthorized Hacks . | . . . . Terminals . | . . . . Fabricators . | . . . . Repair Stations . | . . . . Recycling Units . | . . . . Scanalyzers . | . . . . Garrison Access . | . . . . Data Cores Recovered 1 | . 1 . . Used 1 | . 1 . . Hacking Detections 6 | . 4 . 2 Full Trace Events 3 | . 2 . 1 Feedback Events . | . . . . Feedback Blocked . | . . . . Robot Schematics Acquired . | . . . . Robots Built . | . . . . Authchips . | . . . . Time . | . . . . Total Robot Build Rating . | . . . . Part Schematics Acquired . | . . . . Parts Built . | . . . . Authchips . | . . . . Time . | . . . . Total Part Build Rating . | . . . . Parts Repaired . | . . . . Time . | . . . . Parts Recycled . | . . . . Recycled Matter . | . . . . Retrieved Matter . | . . . . Retrieved Components . | . . . . Parts Scanalyzed . | . . . . Part Schematics Acquired . | . . . . Parts Damaged . | . . . . Bothacking | -11 -10 -10 -9 ------------ Run | Yrd Mat Min Mat Used RIF Installer . | . . . . Robots Hacked . | . . . . Non-combat . | . . . . Combat . | . . . . Robot Hacks Applied . | . . . . Relay Couplers Released . | . . . . Fabnet Peak Effective % . | . . . . Robots Rewired . | . . . . Allies Hacked . | . . . . Hacks Repelled . | . . . . Allies | -11 -10 -10 -9 -------- Run | Yrd Mat Min Mat Total Allies 4 | . . 4 . Largest Group 4 | . . 4 . Highest-Rated Group 71 | . . 71 . Highest-Rated Ally 31 | . . 31 . Total Orders . | . . . . Ally Attacks 23 | . . 23 . Total Damage 302 | . . 302 . Kills 4 | . . 4 . Allies Corrupted . | . . . . Allies Melted . | . . . . Intel | -11 -10 -10 -9 ------- Run | Yrd Mat Min Mat Robot Analysis Total . | . . . . Derelict Logs Recovered 1 | . . 1 . Drone Launches . | . . . . Drone Recoveries . | . . . . Exploration | -11 -10 -10 -9 ------------- Run | Yrd Mat Min Mat Turns Passed 1434 | 115 633 402 284 Spaces Moved 1189 | 69 626 381 113 Core 54 | 7 . . 47 Treads . | . . . . Legs 33 | . . . 33 Wheels 904 | 62 428 381 33 Hover 198 | . 198 . . Flight . | . . . . Fastest Speed 50 | 50 56 90 80 Average Speed 89 | 85 80 90 143 Slowest Speed 250 | 90 116 90 250 Overloaded Moves . | . . . . Propulsion Burnouts . | . . . . Robots Hopped . | . . . . Cave-ins Triggered . | . . . . Exploration Rate (%) 35 | 3 70 53 16 Regions Visited 3 Branch Regions 1 Pre-discovered Areas . | . . . . Known Exits Taken 1 | . 1 . . Unknown Exits Taken 2 | 1 . 1 . Scrap Searched 2 | . . 2 . Spaces Dug 19 | . 19 . . Terrain Destroyed 92 | . 89 . 3 Melee . | . . . . Projectile . | . . . . AOE 92 | . 89 . 3 Terrain Rammed . | . . . . Walls Destroyed . | . . . . Machines Disabled . | . . . . Actions | -11 -10 -10 -9 --------- Run | Yrd Mat Min Mat Total 1423 | 104 717 418 184 Wait 91 | 3 42 26 20 Move 1186 | 68 625 380 113 Hop . | . . . . Pick Up 26 | 13 9 . 4 Fast Attach 1 | 1 . . . Attach 20 | 6 6 . 8 Detach 1 | . 1 . . Swap 10 | 1 8 . 1 Drop 6 | 1 4 . 1 Fire 82 | 11 22 12 37 Melee . | . . . . Ram . | . . . . Kick . | . . . . Crush . | . . . . Escape Stasis . | . . . . Rewire . | . . . . Trap . | . . . . Miscellaneous . | . . . . Route ------- -11/Scrapyard -10/Materials (discovered 4 exits: *Mat x2 / *Min x2) -10/Mines (discovered 2 exits: *Mat / [*Sub]) -9/Materials (discovered 3 exits: Min / Sto x2) History --------- Turn | Location | Event 6 | -11/Scrapyard | Discovered new exit (range 16) 116 | -11/Scrapyard | Entered Materials 304 | -10/Materials | Build established: Mutant 361 | -10/Materials | Discovered new exit (range 10) 397 | -10/Materials | Lost 4 parts (2n2w) 540 | -10/Materials | Discovered new exit (range 15) 634 | -10/Materials | Identified exit to Mines 749 | -10/Materials | Entered Mines 789 | -10/Mines | Assisted by bots powering up and referring to "LRC-V3" 809 | -10/Mines | Discovered new exit (range 7) 822 | -10/Mines | Met a Derelict testing a Signal Generator 906 | -10/Mines | Assembled infested the area 1085 | -10/Mines | Lost 3 allies 1090 | -10/Mines | Core integrity fell below 50% 1122 | -10/Mines | Discovered new exit (range 13) 1126 | -10/Mines | Learned Materials security intel 1151 | -10/Mines | Entered Materials 1151 | -9/Materials | Evolved 2 slots: Propulsion x2 1272 | -9/Materials | Lost 4 parts (3n1w) 1405 | -9/Materials | Lost 4 parts (1p1n1u1w) 1430 | -9/Materials | Identified exit to Mines 1430 | -9/Materials | Identified exit to Storage 1435 | -9/Materials | Self-destructed Last Messages --------------- G-34 Mercenary destroyed. R-06 Scavenger collects Heat Sink. Acquired Aluminum Leg. Acquired 4 matter. Acquired Aluminum Leg. R-06 Scavenger collects Particle Gun. Acquired 20 matter. K-01 Serf collects debris. ALERT: Hostiles spotted, dispatching reinforcements to Terminal M004. Connecting with Terminal... >>Access(Branch) Found 3 branch access points: (12,13) Mines (22,75) Storage (6,25) Storage Map updated. W-16 Scout sends out distress signal. K-01 Serf collects debris. W-16 Scout sends out distress signal. Map ----- +----------------------------------------------------+ | ????# #???# / """ ""??????????????????? | | ????# ????# """ # "R #???????????????? | | ???? ????# """ # """ #???????????????? | | ???? ????# """ # #???????????????? | | ????? ????# ###########???????????????? | | ????????????# # #??????????????????? | | ????????????# """ # #??????????????????? | | ????????????# """ + % #??????????????????? | | ????????????# """ #% #??????????????????? | | ????????????# # #??????????????????? | | ????????????# # #??????????????????? | | ????????????# """ ########??????????????????? | | ????????????# """ # ???????????????????????? | | ????????????# """ # ??????????????????????? | | ????????????# #[[!??????????????????????? | | ????????????# #[! ????????????????????? | | ??????????? + """ #[! ??????????????????? | | ?????????? # """ # ??????????????????? | | ?????????#??# """ # ??????????????????? | | ????????????# #? """???????????????????? | | ????????????# #? """???????????????????? | | ????????????# """ #?? ""????????????????????? | | ????????????# """ #?? ???????? #??????????? | | ????????????# """ ####+###### #???????????? | | ????????????# w #???????????? | | ????????????# @ #???????????? | | ????????????# T + ?????? | | ????????????# o # "T" ??????? | | ????????????# k w #???????????? | | ????????????# #???????????? | | ????????????ss ########## #???????????? | | ????????????# ?????????#r #???????????? | | ????????????# ??????????# ??????????? | | ????????????# ???????????# """k ?????????? | | ???????????? ????????????# """"" ###????????? | | ?????????????????????????# """"? #??????????? | | ?????????????????????????# "????? #??????????? | | ?????????????????????????# ?????? ???????????? | | ?????????????????????????? ??????????????????? | | ?????????????????????????? ??????????????????? | | ?????????????????????????? ???????????????????? | | ?????????????????????????????????????????????????? | | ?????????????????????????????????????????????????? | | ?????????????????????????????????????????????????? | | ?????????????????????????????????????????????????? | | ?????????????????????????????????????????????????? | | ?????????????????????????????????????????????????? | | ?????????????????????????????????????????????????? | | ?????????????????????????????????????????????????? | | ?????????????????????????????????????????????????? | +----------------------------------------------------+ Best States ------------- Heat Dissipation 28 Energy Generation 10 Energy Capacity 125 Matter Stores 300 Matter Capacity 300 Sight Range 16 Terrain Scan Density 10 Evasion (%) 55 Item Schematics ----------------- None Robot Schematics ------------------ None Fabricated ------------ Nothing Alien Tech Used ----------------- None Achievements -------------- None Challenges ------------ None Game ------ Seed IntegritySalvageSaw Manual? 0 Play Time 00:14:18 Cumulative 21.5 hours Start 2024.04.12 @ 20:53:33 End 2024.04.12 @ 21:05:30 Sessions 1 Manual Loads 0 Difficulty Rogue Special Mode None Game No. 60 Rogue 60 Adventurer 0 Explorer 0 Win Type - Total 0 Types 0/0/0/0/0/0/0/0/0 Lore% 19 Gallery% 28 Achievement% 22 Wizard Run 0 Options --------- Layout 1 ASCII 0 Keyboard 0 Movement Arrows Keybinds 0 Fullscreen 2 Font 24/Smallcaps Map View 50x35 Zoom Use 0% Tactical HUD 0 Map Filters NONE Filters NONE Steam 1 RUN: 4043fb2b-437e-4dfb-ae0f-4bcbec3558b1